Cogmind - Beta 13 @@@ ROGUE MODE // 2024.07.16 @ 19:15:06 Player: celerysam Result: Destroyed by Heavy Explosive Trap Performance ------------- Evolutions (3) 1500 Regions Visited (4) 800 Robots Destroyed (30) 150 Value Destroyed (962) 962 Prototype IDs (4) 80 Alien Tech Used (0) 0 Bonus (0) 0 TOTAL SCORE: 3492 Bonus ------- None Cogmind --------- Core Integrity 0/700 Matter 49/300 Energy 59/160 System Corruption 3% Temperature Cool (6) Movement Hovering (56) Location -7/Factory Parts ------- > --- POWER (2) -------- Light Nuclear Core > --- PROPULSION (5) --- Airjet Gravmag System > --- UTILITY (4) ------ Advanced Weight Redist. System Target Analyzer Transmission Jammer > --- WEAPON (2) ------- Improved Assault Rifle > --- INVENTORY (5) ---- Light Angular Momentum Engine Aerolev Unit Improved Heat Sink Shock Rifle Plasma Cannon Peak State ------------ > --- POWER ------------ Light Nuclear Core Light Nuclear Core > --- PROPULSION ------- Improved Carbon-fiber Leg Armored Huge Wheel Aerolev Unit Gravmag System > --- UTILITY ---------- Advanced Weight Redist. System Target Analyzer Transmission Jammer Medium Reflective Plating > --- WEAPON ----------- Improved Assault Rifle Mini Assault Cannon > --- INVENTORY -------- Light Angular Momentum Engine Improved Heat Sink Shock Rifle Plasma Cannon [Rating: 49] Favorites ----------- Power Light Nuclear Core Engine Light Ion Engine Power Core Light Nuclear Core Propulsion Flight Unit Treads Light Treads Leg Aluminum Leg Wheel Compact Wheel Hover Unit Aerolev Unit Flight Unit Flight Unit Utility Advanced Weight Redist. System Device Advanced Weight Redist. System Storage Small Storage Unit Processor Target Analyzer Protection Medium Reflective Plating Weapon Light Assault Rifle Energy Gun Particle Gun Energy Cannon Plasma Cannon Ballistic Gun Light Assault Rifle Ballistic Cannon Mini Assault Cannon Launcher Improved Grenade Launcher Impact Weapon Heavy Hammer Slashing Weapon Scythe Build | -11 -10 -9 -8 -7 ------- Run | Yrd Mat Mat Mat Fac Slots Evolved 6 | . . 2 2 2 Power 1 | . . . 1 . Propulsion 3 | . . 2 . 1 Utility 2 | . . . 1 1 Weapon . | . . . . . Parts Attached 71 | 6 7 8 19 31 Power 14 | 1 1 1 7 4 Engine 9 | 1 1 1 5 1 Core 5 | . . . 2 3 Reactor . | . . . . . Propulsion 29 | 2 4 4 7 12 Treads 4 | . . 2 . 2 Leg 7 | . 2 1 1 3 Wheel 5 | 2 2 . . 1 Hover 8 | . . 1 1 6 Flight 5 | . . . 5 . Utility 12 | 1 1 . 3 7 Device 7 | . 1 . 3 3 Storage 2 | 1 . . . 1 Processor 1 | . . . . 1 Hackware . | . . . . . Protection 2 | . . . . 2 Artifact . | . . . . . Weapon 16 | 2 1 3 2 8 Energy Gun 5 | 1 1 1 . 2 Energy Cannon 1 | . . . . 1 Ballistic Gun 5 | 1 . 1 1 2 Ballistic Cannon 1 | . . . . 1 Launcher 1 | . . . . 1 Special Weapon . | . . . . . Impact Weapon 2 | . . 1 . 1 Slashing Weapon 1 | . . . 1 . Piercing Weapon . | . . . . . Special Melee Weapon . | . . . . . Unidentified Prototypes 4 | . . . . 4 Parts Lost 37 | . 3 9 8 17 Power 7 | . 1 2 1 3 Propulsion 18 | . 2 4 5 7 Utility 5 | . . 1 1 3 Weapon 7 | . . 2 1 4 Highest Loss Streak 13 | . 2 6 7 13 To Critical Strikes . | . . . . . Average Slot Usage (%) 71 | . 91 66 52 70 Engine 4 | . 13 7 3 1 Core 4 | . . . 2 7 Treads 3 | . . 7 4 3 Leg 8 | . 9 16 3 8 Wheel 4 | . 14 . . 2 Hover 4 | . . . 3 7 Flight 4 | . . . 11 4 Device 8 | . 11 5 3 9 Storage 6 | . 14 11 5 3 Processor 2 | . . . . 4 Protection 1 | . . . . 2 Energy Gun 5 | . 14 7 1 2 Ballistic Gun 7 | . 14 3 9 5 Impact Weapon 1 | . . 6 . . Slashing Weapon 1 | . . . 4 1 Naked Turns . | . . . . . Heaviest Build 25 | 13 14 15 22 25 Greatest Support 50 | 32 32 40 25 50 Greatest Overweight (x) 3 | . . 2 2 3 Average Overweight (x) . | . . . . . Largest Inventory Capacity 8 | 8 8 8 8 5 Average Capacity 6 | 7 8 8 6 5 Most Carried 8 | 6 8 8 8 5 Average Carried 5 | 3 7 6 5 4 Final Capacity 8 | 8 8 8 5 5 Final Carried 8 | 6 8 4 5 5 Class Distribution -------------------- 83% | Mutant 9% | Scavenger-Mutant 6% | Scavenger-Sprinter Dominant Class ---------------- Mutant | -10/Materials Mutant | -9/Materials Mutant | -8/Materials Mutant | -7/Factory Resources | -11 -10 -9 -8 -7 ----------- Run | Yrd Mat Mat Mat Fac Matter Collected 734 | 194 162 71 153 154 Remotely . | . . . . . Salvage Created 1048 | . 261 175 143 469 Parts 46 | . 12 6 7 21 Haulers Intercepted . | . . . . . Recyclers Shooed . | . . . . . Parts Field Recycled . | . . . . . Retrieved Matter . | . . . . . Parts Self-Destructed . | . . . . . Prevented . | . . . . . Kills | -11 -10 -9 -8 -7 ------- Run | Yrd Mat Mat Mat Fac Combat Hostiles Destroyed 26 | . 6 5 4 11 Melee 4 | . . 2 1 1 Guns 17 | . 6 3 3 5 AOE 2 | . . . . 2 Classes Destroyed 7 | . 4 . 1 2 Tunneler 1 | . . . . 1 Operator 1 | . 1 . . . Watcher 2 | . 1 1 . . Swarmer 8 | . 1 2 2 3 Grunt 15 | . 5 3 1 6 Sentry 2 | . . . 1 1 Programmer 1 | . . . . 1 Best Kill Streak 4 | . 2 2 4 4 Combat Bots Only 4 | . 2 2 4 4 Max Kills in Single Turn 2 | . 1 1 1 2 Gunslinging . | . . . . . Exploded 2 | . . . . 2 Melee 1 | . . 1 1 1 Uniques/NPCs Destroyed . | . . . . . Combat | -11 -10 -9 -8 -7 -------- Run | Yrd Mat Mat Mat Fac Hostile Shots Fired 550 | . 69 129 81 271 Missed 192 | . 14 34 29 115 Damage Taken 5061 | . 598 1304 617 2542 Core 1546 | . 204 358 265 719 Absorbed by Shields 105 | . . . . 105 Ignored by Resistances 9 | . . . . 9 Core Remaining (%) 44 | 100 18 10 51 . Volleys Fired 98 | . 38 13 8 39 Largest 2 | . 2 2 1 2 Hottest 85 | . 85 76 25 75 Shots Fired 142 | . 66 17 8 51 Gun 140 | . 66 17 8 49 Cannon . | . . . . . Launcher 2 | . . . . 2 Special . | . . . . . Kinetic 87 | . 38 7 8 34 Thermal 38 | . 28 10 . . Explosive 2 | . . . . 2 Electromagnetic 15 | . . . . 15 Robot Hit Streak 13 | . 6 13 6 8 Robot Miss Streak 5 | . 3 1 1 5 Penetration Max . | . . . . . Secondary Targets 1 | . 1 . . . Max Gunslinging Chain 1 | . 1 . . . Shots Hit Robots 119 | . 41 25 8 45 Core Hits 54 | . 15 8 6 25 Critical Kills . | . . . . . Critical Parts Destroyed 3 | . . 1 . 2 Critical Strikes 4 | . . 2 . 2 Burn 1 | . . 1 . . Destroy 1 | . . . . 1 Smash 2 | . . 1 . 1 Melee Attacks 33 | . . 15 3 15 Impact 24 | . . 15 . 9 Slashing 9 | . . . 3 6 Piercing . | . . . . . Sneak Attacks . | . . . . . Combat Hostiles . | . . . . . Follow-up Attacks 2 | . . . . 2 Damage Inflicted 2386 | . 423 494 182 1287 Guns 1275 | . 423 165 119 568 Cannons . | . . . . . Explosions 306 | . . . . 306 Melee 785 | . . 329 63 393 Ramming 20 | . . . . 20 Kinetic 816 | . 197 62 119 438 Thermal 428 | . 226 103 . 99 Explosive 207 | . . . . 207 Electromagnetic 130 | . . . . 130 Impact 660 | . . 329 . 331 Slashing 125 | . . . 63 62 Piercing . | . . . . . Highest Corruption 3 | . . . . 3 Average Corruption 2 | . . . . 2 Corruption Purged . | . . . . . Corruption Blocked . | . . . . . Effects 5 | . . . . 5 Heat Flow Errors 1 | . . . . 1 Energy Discharges 3 | . . . . 3 Misfires 1 | . . . . 1 Overload Shots . | . . . . . Overflow Damage 241 | . . 98 . 143 Projectiles 43 | . . . . 43 Explosions 18 | . . . . 18 Melee 180 | . . 98 . 82 Knockbacks 4 | . . 1 . 3 Impact 3 | . . 1 . 2 Kinetic . | . . . . . Secondary 1 | . . . . 1 Self-Inflicted Damage 55 | . . . . 55 Shots 1 | . . . . 1 Rammed 1 | . . . . 1 Targets Rammed 1 | . . . . 1 Kicked . | . . . . . Crushed . | . . . . . Highest Temperature 267 | . 267 80 5 171 Average Temperature 66 | . 95 28 2 32 Received Heat Transfer 1586 | . 276 519 162 629 Effects 3 | . 3 . . . Interference 3 | . 3 . . . Siege Activations . | . . . . . Robots Corrupted 2 | . . . . 2 Combat Hostiles 2 | . . . . 2 Parts Fried 4 | . . 3 . 1 Impact Corruptions 8 | . . 4 . 4 Robots Melted . | . . . . . Combat Hostiles . | . . . . . Parts Melted 2 | . 2 . . . Heat Transferred 1099 | . 666 333 . 100 Parts Sabotaged . | . . . . . Parts Stolen . | . . . . . Parts Stripped . | . . . . . Power Chain Reactions 1 | . . . . 1 Alert | -11 -10 -9 -8 -7 ------- Run | Yrd Mat Mat Mat Fac Peak Influence 313 | . 122 116 142 313 Initial 64 | . . 51 42 64 Average 97 | . 59 82 65 134 Maximum Alert Level 1 | . . . . 1 Low Security (%) 92 | 100 100 100 100 83 Level 1 7 | . . . . 16 Level 2 . | . . . . . Level 3 . | . . . . . Level 4 . | . . . . . Level 5 . | . . . . . High Security . | . . . . . Max Security . | . . . . . Squads Dispatched 9 | . 1 2 1 5 Investigation 2 | . . 1 . 1 Extermination 1 | . . . . 1 Reinforcement 3 | . 1 1 1 . Assault . | . . . . . Garrison 3 | . . . . 3 Intercept . | . . . . . Searches Triggered . | . . . . . Construction Impeded . | . . . . . Haulers Reinforced . | . . . . . Active Scanning Responses . | . . . . . Cargo Convoy Interrupts . | . . . . . Stealth | -11 -10 -9 -8 -7 --------- Run | Yrd Mat Mat Mat Fac Distress Signals 2 | . . 1 1 . Communications Jammed . | . . . . . Distress Signals . | . . . . . Times Spotted 75 | . 12 12 18 33 Peak Tracking Total 13 | . 3 4 9 13 Tactical Retreats 8 | . . . 1 7 Traps | -11 -10 -9 -8 -7 ------- Run | Yrd Mat Mat Mat Fac Traps Triggered 5 | . . 1 . 4 Indirectly . | . . . . . Trap Hack Attempts . | . . . . . Triggered . | . . . . . Disarmed . | . . . . . Reprogrammed . | . . . . . Reused . | . . . . . Traps Extracted . | . . . . . Installed . | . . . . . Triggered 1 | . . 1 . . Machines | -11 -10 -9 -8 -7 ---------- Run | Yrd Mat Mat Mat Fac Machines Disabled . | . . . . . Max in Single Turn . | . . . . . Machines Repaired . | . . . . . Machines Dismantled . | . . . . . Machines Sabotaged . | . . . . . Overloaded Fab Kills . | . . . . . Hacking | -11 -10 -9 -8 -7 --------- Run | Yrd Mat Mat Mat Fac Machines Accessed 7 | . 3 . . 4 Terminals 7 | . 3 . . 4 Fabricators . | . . . . . Repair Stations . | . . . . . Recycling Units . | . . . . . Scanalyzers . | . . . . . Garrison Access . | . . . . . Total Hacks 10 | . 5 . . 5 Successful 1 | . . . . 1 Failed 9 | . 5 . . 4 Catastrophic 4 | . 1 . . 3 Database Lockouts . | . . . . . Manual 9 | . 5 . . 4 Terminals 10 | . 5 . . 5 Fabricators . | . . . . . Repair Stations . | . . . . . Recycling Units . | . . . . . Scanalyzers . | . . . . . Garrison Access . | . . . . . Terminal Hacks 1 | . . . . 1 Open DSF 1 | . . . . 1 Fabricator Hacks . | . . . . . Repair Station Hacks . | . . . . . Recycling Unit Hacks . | . . . . . Scanalyzer . | . . . . . Garrison Access Hacks . | . . . . . Unauthorized Hacks . | . . . . . Terminals . | . . . . . Fabricators . | . . . . . Repair Stations . | . . . . . Recycling Units . | . . . . . Scanalyzers . | . . . . . Garrison Access . | . . . . . Data Cores Recovered 1 | . 1 . . . Used . | . . . . . Hacking Detections 5 | . 3 . . 2 Full Trace Events 3 | . 2 . . 1 Feedback Events . | . . . . . Feedback Blocked . | . . . . . Robot Schematics Acquired . | . . . . . Robots Built . | . . . . . Authchips . | . . . . . Time . | . . . . . Total Robot Build Rating . | . . . . . Part Schematics Acquired . | . . . . . Parts Built . | . . . . . Authchips . | . . . . . Time . | . . . . . Total Part Build Rating . | . . . . . Parts Repaired . | . . . . . Time . | . . . . . Parts Recycled . | . . . . . Recycled Matter . | . . . . . Retrieved Matter . | . . . . . Retrieved Components . | . . . . . Parts Scanalyzed . | . . . . . Part Schematics Acquired . | . . . . . Parts Damaged . | . . . . . Bothacking | -11 -10 -9 -8 -7 ------------ Run | Yrd Mat Mat Mat Fac Used RIF Installer . | . . . . . Robots Hacked . | . . . . . Non-combat . | . . . . . Combat . | . . . . . Robot Hacks Applied . | . . . . . Relay Couplers Released . | . . . . . Fabnet Peak Effective % . | . . . . . Robots Rewired . | . . . . . Allies Hacked . | . . . . . Hacks Repelled . | . . . . . Allies | -11 -10 -9 -8 -7 -------- Run | Yrd Mat Mat Mat Fac Total Allies . | . . . . . Largest Group . | . . . . . Highest-Rated Group . | . . . . . Highest-Rated Ally . | . . . . . Total Orders . | . . . . . Ally Attacks . | . . . . . Total Damage . | . . . . . Kills . | . . . . . Allies Corrupted . | . . . . . Allies Melted . | . . . . . Intel | -11 -10 -9 -8 -7 ------- Run | Yrd Mat Mat Mat Fac Robot Analysis Total . | . . . . . Derelict Logs Recovered . | . . . . . Drone Launches . | . . . . . Drone Recoveries . | . . . . . Exploration | -11 -10 -9 -8 -7 ------------- Run | Yrd Mat Mat Mat Fac Turns Passed 1646 | 62 332 213 241 798 Spaces Moved 1391 | 48 195 97 301 750 Core 24 | 6 . 6 4 8 Treads 91 | . . 31 22 38 Legs 161 | . 65 60 4 32 Wheels 172 | 42 130 . . . Hover 557 | . . . 81 476 Flight 386 | . . . 190 196 Fastest Speed 31 | 50 90 120 31 34 Average Speed 80 | 93 104 134 60 73 Slowest Speed 200 | 100 120 160 200 200 Overloaded Moves . | . . . . . Propulsion Burnouts . | . . . . . Robots Hopped 1 | . . . . 1 Cave-ins Triggered . | . . . . . Exploration Rate (%) 22 | 5 37 15 36 21 Regions Visited 4 Branch Regions . Pre-discovered Areas . | . . . . . Known Exits Taken . | . . . . . Unknown Exits Taken 4 | 1 1 1 1 . Scrap Searched . | . . . . . Spaces Dug 3 | . . . . 3 Terrain Destroyed 14 | . . . . 14 Melee 3 | . . . . 3 Projectile . | . . . . . AOE 11 | . . . . 11 Terrain Rammed . | . . . . . Walls Destroyed . | . . . . . Machines Disabled . | . . . . . Actions | -11 -10 -9 -8 -7 --------- Run | Yrd Mat Mat Mat Fac Total 1738 | 65 264 139 348 922 Wait 66 | . 16 2 . 48 Move 1385 | 47 194 96 300 748 Hop 1 | . . . . 1 Pick Up 46 | 12 6 3 13 12 Fast Attach 23 | . 2 . 6 15 Attach 40 | 6 2 8 10 14 Detach 6 | . . 1 2 3 Swap 8 | . 3 . 3 2 Drop 16 | . 3 1 3 9 Fire 98 | . 38 13 8 39 Melee 30 | . . 15 3 12 Ram 1 | . . . . 1 Kick . | . . . . . Crush . | . . . . . Escape Stasis 18 | . . . . 18 Rewire . | . . . . . Trap . | . . . . . Miscellaneous . | . . . . . Route ------- -11/Scrapyard -10/Materials -9/Materials -8/Materials -7/Factory History --------- Turn | Location | Event 27 | -11/Scrapyard | Discovered new exit (range 16) 63 | -11/Scrapyard | Entered Materials 226 | -10/Materials | Core integrity fell below 50% 305 | -10/Materials | Build established: Mutant 326 | -10/Materials | Discovered new exit (range 5) 337 | -10/Materials | Core integrity fell below 20% 395 | -10/Materials | Entered another Materials area 395 | -9/Materials | Evolved 2 slots: Propulsion x2 539 | -9/Materials | Lost 6 parts (1p3n1u1w) 569 | -9/Materials | Core integrity fell below 50% 586 | -9/Materials | Discovered new exit (range 9) 604 | -9/Materials | Core integrity fell below 20% 608 | -9/Materials | Entered another Materials area 608 | -8/Materials | Evolved 2 slots: Power x1, Utility x1 626 | -8/Materials | Lost 3 parts (1p1n1w) 779 | -8/Materials | Lost 7 parts (1p4n1u1w) 844 | -8/Materials | Discovered new exit (range 16) 849 | -8/Materials | Entered Factory 849 | -7/Factory | Evolved 2 slots: Propulsion x1, Utility x1 1053 | -7/Factory | Core integrity fell below 50% 1085 | -7/Factory | Lost 13 parts (2p5n2u4w) 1277 | -7/Factory | Garrison activated, responded to threat 1460 | -7/Factory | Core integrity fell below 20% 1647 | -7/Factory | Destroyed by Heavy Explosive Trap Last Messages --------------- 01619_ System corrupted: FCS attempts to trigger Imp. Assault Rifle. 01619_ System corrupted: Imp. Assault Rifle misfires. 01623_ K-01 Serf cleans the DSF Access. 01624_ Triggered Alarm Trap. 01624_ Transmission Jammer jams signal. 01625_ Knocked back. 01628_ Critical hit (Burn: +37). 01629_ Lgt. Nuclear Core destroyed. 01629_ Mni. Assault Cannon blasted off. 01629_ Knocked back. 01631_ Triggered Stasis Trap. 01631_ A bubble of rippling energy engulfs the area. 01631_ Field strength at 66. 01631_ Med. Reflective Plating destroyed. 01631_ Aerolev Unit blasted off. 01631_ Knocked back. 01642_ Airjet destroyed. 01647_ Triggered Heavy Explosive Trap. 01647_ An explosion rips through the floor. 01647_ Airjet destroyed. Map ----- +----------------------------------------------------+ | ???????????????????????????# #?????????????? | | ???????????????????????????# #?????????????? | | ???????????????????????????# #?????????????? | | ????????????????????" ?????# #?????????????? | | ?????????????????"""" "????# ##+#??????????? | | ??????????????????""" "????# #??????????? | | ??????????????????? ????# #??????????? | | ???????????????????? ???# #??????????? | | ????????????????????? ???# +??????????? | | ?????????????????????? ???# #??????????? | | ??????????????????#####+#### #??????????? | | ?????????????????## #??????????? | | ?????????????????#" a ###????????? | | ?????????????????#" """ !!! ???????? | | ?????????????????#" "G" !!! ??????? | | ?????????????????#T " " !!! ???????? | | ?????????????????#" g #######???????? | | ?????????????????#" """ """ """ #?????????????? | | ?????????????????#" """ """ """ #?????????????? | | ?????????????????## """ """ """ #?????????????? | | ??????????????????# #?????????????? | | ??????????????????# """ """ """ #?????????????? | | ??????????????????# """ """ """ ???????????????? | | ??????????????????# """ """ """ #?????????????? | | ??????????????????# #?????????????? | | ??????????????????# """@""" """ #?????????????? | | ??????????????????# """ """ """????????????????? | | ??????????????????# """ """ """????????????????? | | ??????????????????# ????????????????? | | ??????????????????# """ """ """????????????????? | | ??????????????????# """ """ ""?????????????????? | | ??????????????????# """ """ ""?????????????????? | | ??????????????????# ??? ?????????????????????? | | ??????????????????????? ?????????????????????? | | ???????????????????????? ??????????????????????? | | ???????????????????????? ??????????????????????? | | ????????????????????????###??????????????????????? | | ?????????????????????????????????????????????????? | | ?????????????????????????????????????????????????? | | ?????????????????????????????????????????????????? | | ?????????????????????????????????????????????????? | | ?????????????????????????????????????????????????? | | ?????????????????????????????????????????????????? | | ?????????????????????????????????????????????????? | | ?????????????????????????????????????????????????? | | ?????????????????????????????????????????????????? | | ?????????????????????????????????????????????????? | | | | | | | +----------------------------------------------------+ Best States ------------- Heat Dissipation 48 Energy Generation 23 Energy Capacity 415 Matter Stores 300 Matter Capacity 300 Sight Range 16 Terrain Scan Density 10 Jamming Range 12 Additional Mass Support 9 Armor Coverage 225 Resistance: TH 15 Evasion (%) 63 Target Analysis 5 Recoil Reduction 2 Item Schematics ----------------- None Robot Schematics ------------------ None Fabricated ------------ Nothing Alien Tech Used ----------------- None Achievements -------------- None Challenges ------------ None Game ------ Seed SwordBoreReconfigurator Manual? 0 Play Time 00:31:57 Cumulative 107.2 hours Start 2024.07.16 @ 17:44:42 End 2024.07.16 @ 19:15:06 Sessions 1 Manual Loads 0 Difficulty Rogue Special Mode None Game No. 152 Rogue 152 Adventurer 0 Explorer 0 Win Type - Total 0 Types 0/0/0/0/0/0/0/0/0 Lore% 44 Gallery% 58 Achievement% 37 Wizard Run 0 Options --------- Layout 0 ASCII 0 Keyboard 0 Movement Mouse Keybinds 0 Fullscreen 1 Font 24/Smallcaps Map View 76x50 Zoom Use 0% Tactical HUD 1 Map Filters NONE Filters NONE Steam 1 RUN: d4e479d2-35ea-468f-9eb6-44f565870d11